bitfinex/quotes_SOLUSD_20250308
["timestamp","ask_amount","ask_price","bid_price","bid_amount"]
[1741404067680,0.03,139.05,139.04,181.65869847]
[1741404068499,0.03,139.08,139.05,25.07504886]
[1741404068680,0.03,139.08,139.07,21.24694961]
[1741404071009,0.03,139.08,139.07,47.08719847]
[1741404071184,0.03,139.08,139.07,39.89659847]
[1741404071976,0.03,139.08,139.07,47.08719847]
[1741404072696,0.03,139.08,139.07,181.65719847]
[1741404075712,0.03,139.14,139.09,134.51]
[1741404075891,0.03,139.14,139.13,21.24694961]
[1741404076089,0.03,139.14,139.13,174.40659847]
[1741404076401,0.03,139.14,139.13,134.51]
[1741404076607,0.03,139.14,139.12,21.24694961]
[1741404076780,0.03,139.14,139.13,21.24694961]
[1741404076979,0.03,139.14,139.13,39.89659847]
[1741404077177,0.03,139.14,139.13,47.08409847]
[1741404078022,0.03,139.14,139.13,181.59409847]
[1741404079991,0.03,139.14,139.13,263.09409847]
[1741404084622,0.03,139.19,139.14,134.48]
[1741404084820,0.03,139.19,139.17,21.24694961]
[1741404085022,0.03,139.19,139.17,155.72694961]
[1741404087111,0.03,139.19,139.17,134.48]
[1741404088026,6.7439,139.2,139.17,134.48]
[1741404088219,7.1835,139.21,139.17,134.48]
[1741404092040,0.03,139.22,139.17,155.72694961]
[1741404092246,0.03,139.22,139.18,21.24694961]
[1741404092422,7.213,139.22,139.17,162.91214961]
[1741404092839,7.213,139.22,139.18,21.24694961]
[1741404093845,7.213,139.22,139.2,21.24694961]
[1741404093846,0.03,139.22,139.2,21.24694961]
[1741404094033,0.03,139.22,139.21,21.24694961]
[1741404094222,0.03,139.22,139.2,155.72694961]
[1741404095449,0.03,139.22,139.2,134.48]
[1741404095844,0.03,139.22,139.2,155.72694961]
[1741404096046,0.03,139.22,139.2,162.91064961]
[1741404098065,0.03,139.22,139.2,134.48]
[1741404098253,0.03,139.22,139.17,141.6653]
[1741404098455,0.03,139.24,139.19,21.24694961]
[1741404098635,0.03,139.24,139.2,21.24694961]
[1741404098833,0.03,139.24,139.2,155.72694961]
[1741404099157,0.03,139.24,139.21,21.24694961]
[1741404100351,0.03,139.24,139.21,155.72694961]
[1741404101051,0.03,139.24,139.21,134.48]
[1741404102157,21.27694961,139.24,139.21,134.48]
[1741404102531,0.03,139.24,139.21,134.48]
[1741404104166,7.212,139.24,139.21,134.48]
[1741404104560,0.03,139.24,139.21,134.48]
[1741404104866,0.03,139.24,139.21,155.72694961]
[1741404105365,0.03,139.24,139.21,148.04211764]
[1741404105574,0.03,139.24,139.22,13.56211764]
[1741404105769,0.03,139.24,139.23,13.56211764]
[1741404105944,0.03,139.24,139.23,148.04211764]
[1741404106445,0.03,139.24,139.23,155.22441764]
[1741404107262,0.03,139.24,139.2,148.1837]
[1741404107468,0.03,139.24,139.21,13.56211764]
[1741404107673,0.03,139.24,139.2,148.1837]
[1741404107872,0.03,139.24,139.21,13.56211764]
[1741404108569,1.6327,139.24,139.19,13.56211764]
[1741404108767,15.19481764,139.24,139.19,13.56211764]
[1741404109283,1.6327,139.24,139.19,13.56211764]
[1741404109489,8.8146,139.24,139.19,13.56211764]
[1741404110860,22.37671764,139.24,139.18,13.59511764]
[1741404111279,30.01457904,139.24,139.18,21.23297904]
[1741404111659,30.01457904,139.24,139.18,155.71297904]
[1741404112076,21.19997904,139.22,139.18,0.033]
[1741404112280,21.19997904,139.21,139.18,0.033]
[1741404112470,21.19997904,139.22,139.18,0.033]
[1741404113598,7.1833,139.21,139.18,0.033]
[1741404114290,21.19997904,139.22,139.18,0.033]
[1741404114474,1.6327,139.24,139.2,21.19997904]
[1741404114793,1.6327,139.24,139.21,21.19997904]
[1741404114994,1.6327,139.24,139.2,155.67997904]
[1741404117397,1.6327,139.24,139.2,134.48]
[1741404119800,0.03,139.24,139.21,21.19997904]
[1741404120479,0.03,139.24,139.2,134.48]
[1741404120796,0.03,139.24,139.21,21.19997904]
[1741404120996,0.03,139.24,139.22,21.19997904]
[1741404121171,0.03,139.24,139.23,39.8496279]
[1741404121989,0.03,139.24,139.22,155.67997904]
[1741404122383,0.03,139.24,139.23,39.8496279]
[1741404122568,0.03,139.24,139.23,174.3296279]
[1741404123168,0.03,139.24,139.23,134.48]
[1741404123896,0.03,139.24,139.23,174.3296279]
[1741404124194,0.03,139.24,139.23,195.52960694]
[1741404124497,0.03,139.24,139.23,181.5119279]
[1741404125397,0.03,139.24,139.23,155.67997904]
[1741404125778,0.03,139.24,139.23,181.5119279]
[1741404126703,0.03,139.24,139.23,155.67997904]
[1741404128396,0.03,139.24,139.23,181.5119279]
[1741404128603,0.03,139.24,139.23,188.0719279]
[1741404129004,0.03,139.26,139.25,18.64964886]
[1741404129185,0.03,139.26,139.25,39.8496279]
[1741404129388,0.03,139.26,139.25,174.2996279]
[1741404130006,0.03,139.26,139.25,155.64997904]
[1741404130383,0.03,139.26,139.25,162.83127904]
[1741404130784,0.03,139.26,139.25,181.4809279]
[1741404131098,0.03,139.26,139.25,160.28094886]
[1741404131287,0.03,139.26,139.25,162.83127904]
[1741404131803,0.03,139.26,139.25,155.64997904]
[1741404133428,0.03,139.26,139.25,134.45]
[1741404133584,0.03,139.26,139.23,155.64997904]
[1741404134280,0.03,139.26,139.23,134.45]
[1741404135682,0.03,139.26,139.23,141.6323]
[1741404136002,0.03,139.26,139.23,134.45]
[1741404137327,0.03,139.26,139.23,162.83227904]
[1741404138406,0.03,139.26,139.24,21.19997904]
[1741404138913,0.03,139.26,139.23,162.83227904]
[1741404139408,0.03,139.26,139.25,21.19997904]
[1741404140612,0.03,139.26,139.23,141.6323]
[1741404140911,0.03,139.26,139.23,155.64997904]
[1741404141595,0.03,139.26,139.23,134.45]
[1741404141796,6.549,139.26,139.23,134.45]
[1741404142221,6.549,139.26,139.23,162.83227904]
[1741404142919,0.03,139.26,139.23,162.83227904]
[1741404143533,0.03,139.26,139.24,28.38147904]
[1741404144636,0.03,139.26,139.24,7.1815]
[1741404146829,0.03,139.26,139.24,141.6315]
[1741404147008,0.03,139.26,139.24,162.83147904]
[1741404147214,0.03,139.26,139.24,134.45]
[1741404148032,0.03,139.26,139.24,162.83157904]
[1741404149840,0.03,139.26,139.24,155.64997904]
[1741404150636,0.03,139.26,139.24,134.45]
[1741404150829,0.03,139.26,139.24,155.64997904]
[1741404151144,0.03,139.26,139.24,162.83157904]
[1741404151325,0.03,139.26,139.25,21.19997904]
[1741404151917,0.03,139.26,139.25,28.38127904]
[1741404152842,0.03,139.26,139.25,162.83127904]
[1741404153043,0.03,139.26,139.25,134.45]
[1741404155532,0.03,139.26,139.25,162.83127904]
[1741404156434,0.03,139.26,139.25,155.64997904]
[1741404156732,0.03,139.26,139.25,134.45]
[1741404159038,0.03,139.26,139.25,148.00419305]
[1741404159240,0.03,139.26,139.25,155.18549305]
[1741404161028,0.03,139.26,139.25,173.83514191]
[1741404163033,0.03,139.26,139.25,148.00419305]
[1741404163856,0.03,139.26,139.25,134.45]
[1741404164058,0.03,139.26,139.25,148.00419305]
[1741404165160,0.03,139.26,139.25,173.83514191]
[1741404166065,0.03,139.27,139.26,153.06964886]
[1741404166261,0.03,139.27,139.26,248.12384191]
[1741404167135,0.0001,139.28,139.26,255.30464191]
[1741404167333,0.03,139.3,139.28,18.64964886]
[1741404167561,0.03,139.3,139.29,32.20384191]
[1741404168958,0.03,139.3,139.29,13.55419305]
[1741404169362,0.03,139.3,139.28,222.44]
[1741404170263,0.03,139.3,139.28,235.99419305]
[1741404171046,0.03,139.3,139.28,134.42]
[1741404172264,13.55419305,139.29,139.28,134.42]
[1741404173368,21.18265386,139.29,139.28,134.42]
[1741404173665,7.1797,139.28,139.24,134.453]
[1741404175147,21.18265386,139.28,139.24,134.453]
[1741404175573,28.36185386,139.29,139.24,134.453]
[1741404175871,7.1792,139.29,139.24,155.63565386]
[1741404176171,28.36185386,139.29,139.24,134.453]
[1741404177748,7.1792,139.29,139.24,134.453]
[1741404179077,7.1792,139.29,139.24,155.63565386]
[1741404179455,7.1792,139.29,139.25,21.18265386]
[1741404179657,7.1792,139.29,139.25,155.60265386]
[1741404180155,15.1386,139.3,139.25,155.60265386]
[1741404180550,1.5654,139.3,139.27,21.18265386]
[1741404180764,0.03,139.3,139.28,21.18265386]
[1741404181584,0.03,139.3,139.27,155.60265386]
[1741404181755,0.03,139.3,139.27,134.42]
[1741404182577,0.03,139.3,139.27,155.60265386]
[1741404183282,0.03,139.3,139.27,134.42]
[1741404183655,0.03,139.3,139.28,21.18265386]
[1741404183853,0.03,139.3,139.29,21.18265386]
[1741404184676,0.03,139.3,139.28,21.18265386]
[1741404185686,0.03,139.3,139.28,155.60265386]
[1741404186384,0.03,139.31,139.3,153.03964886]
[1741404186559,0.03,139.31,139.3,285.06595658]
[1741404187468,0.03,139.32,139.31,18.64964886]
[1741404187670,0.03,139.32,139.31,48.08658982]
[1741404187868,0.03,139.33,139.31,48.08658982]
[1741404187869,0.03,139.34,139.31,129.58658982]
[1741404188180,0.03,139.38,139.34,18.64964886]
[1741404188383,0.03,139.38,139.35,27.70265386]
[1741404188577,0.03,139.38,139.35,46.35230272]
[1741404189087,0.03,139.38,139.35,27.70265386]
[1741404189393,28.38725386,139.38,139.34,215.89]
[1741404189579,21.21265386,139.37,139.32,134.39]
[1741404189787,22.72395386,139.36,139.32,134.39]
[1741404190718,1.5413,139.36,139.32,134.39]
[1741404190865,1.5413,139.36,139.32,162.75025386]
[1741404191294,1.5413,139.36,139.34,21.18265386]
[1741404191489,0.03,139.36,139.34,21.18265386]
[1741404191690,0.03,139.36,139.33,21.18265386]
[1741404191894,0.03,139.36,139.34,21.18265386]
[1741404192297,0.03,139.36,139.35,21.18265386]
[1741404193315,0.03,139.36,139.35,47.00840272]
[1741404194209,0.03,139.36,139.35,21.18265386]
[1741404194506,0.03,139.36,139.34,162.74925386]
[1741404197013,0.03,139.36,139.35,21.18265386]
[1741404198081,0.03,139.36,139.35,174.22230272]
[1741404198892,0.03,139.36,139.35,181.39840272]
[1741404200223,0.03,139.36,139.35,155.57265386]
[1741404200510,0.03,139.36,139.35,134.39]
[1741404201524,0.03,139.36,139.34,134.39]
[1741404202307,0.03,139.36,139.32,134.39]
[1741404202640,21.18265386,139.35,139.32,134.39]
[1741404202931,21.18265386,139.35,139.3,134.39]
[1741404203317,0.03,139.36,139.31,21.18265386]
[1741404203725,0.03,139.36,139.32,21.18265386]
[1741404203931,0.03,139.36,139.35,21.18265386]
[1741404204105,0.03,139.36,139.35,155.57265386]
[1741404205514,0.03,139.36,139.35,181.39840272]
[1741404208734,0.03,139.36,139.35,162.74875386]
[1741404208938,0.03,139.36,139.35,141.5661]
[1741404210035,0.03,139.36,139.35,134.39]
[1741404210744,0.03,139.36,139.33,134.39]
[1741404210907,0.03,139.36,139.33,162.74975386]
[1741404211103,0.03,139.36,139.33,134.39]
[1741404211719,0.03,139.36,139.33,162.74955386]
[1741404212029,0.03,139.36,139.34,21.18265386]
[1741404212232,0.03,139.36,139.35,21.18265386]
[1741404212936,0.03,139.36,139.34,134.39]
[1741404213257,0.03,139.36,139.35,21.18265386]
[1741404213440,0.03,139.36,139.34,155.57265386]
[1741404214117,0.03,139.36,139.35,28.35875386]
[1741404214739,0.03,139.36,139.35,47.00840272]
[1741404215121,0.03,139.36,139.35,181.39840272]
[1741404215953,0.03,139.36,139.35,162.74875386]
[1741404216843,0.03,139.36,139.35,181.39840272]
[1741404218364,0.03,139.37,139.36,134.36]
[1741404218559,0.03,139.37,139.36,155.54265386]
[1741404219359,0.03,139.37,139.36,174.19230272]
[1741404220248,0.03,139.37,139.36,181.36790272]
[1741404228570,0.0001,139.38,139.37,18.64964886]
[1741404228773,0.0001,139.38,139.37,174.19230272]
[1741404230253,0.0001,139.38,139.37,181.36740272]
[1741404231273,0.0001,139.38,139.37,202.55005658]
[1741404231588,0.0001,139.38,139.37,181.36740272]
[1741404232285,0.0001,139.38,139.37,203.02740272]
[1741404232580,0.0001,139.38,139.37,181.36740272]
[1741404232980,1.5677,139.46,139.38,134.3599]
[1741404233187,1.5677,139.46,139.4,21.18265386]
[1741404234090,1.5677,139.46,139.41,7.173]
[1741404234388,1.5677,139.46,139.41,141.5329]
[1741404236089,21.18265386,139.44,139.4,134.3599]
[1741404236278,28.35445386,139.44,139.4,134.3599]
[1741404237275,21.18265386,139.43,139.38,141.5343]
[1741404237583,27.27045386,139.43,139.38,141.5343]
[1741404238487,21.18265386,139.42,139.38,134.3599]
[1741404239175,1.5677,139.41,139.38,134.3599]
[1741404240464,1.5677,139.41,139.38,141.5344]
[1741404241184,1.5677,139.41,139.38,162.71705386]
[1741404244486,6.0878,139.43,139.4,21.18265386]
[1741404244694,1.513,139.45,139.4,155.54255386]
[1741404245588,1.513,139.45,139.41,7.173]
[1741404245799,1.513,139.45,139.41,141.5329]
[1741404246498,29.86665386,139.45,139.41,134.3599]
[1741404246680,22.69565386,139.45,139.41,134.3599]
[1741404246995,1.513,139.45,139.41,134.3599]
[1741404247402,1.513,139.45,139.41,141.5328]
[1741404250288,1.513,139.45,139.41,162.71545386]
[1741404250488,1.513,139.45,139.42,21.18265386]
[1741404251014,1.513,139.45,139.42,7.1721]
[1741404252005,1.543,139.45,139.42,7.1721]
[1741404252408,1.543,139.45,139.42,28.35475386]
[1741404253409,0.03,139.45,139.42,28.35475386]
[1741404253796,0.03,139.45,139.42,162.71465386]
[1741404255191,0.03,139.45,139.42,141.532]
[1741404255392,0.03,139.45,139.42,155.05257339]
[1741404255601,13.52057339,139.44,139.42,134.3599]
[1741404255910,13.52057339,139.44,139.38,155.08787339]
[1741404256796,7.172,139.43,139.38,141.5673]
[1741404256997,20.69257339,139.43,139.38,141.5673]
[1741404257211,13.52057339,139.41,139.38,0.033]
[1741404257395,13.52057339,139.39,139.38,0.033]
[1741404257904,13.52057339,139.4,139.38,0.033]
[1741404258486,1.6639,139.42,139.38,0.033]
[1741404258487,13.52057339,139.39,139.38,0.033]
[1741404258693,20.69467339,139.39,139.38,0.033]
[1741404259286,28.32670645,139.39,139.38,0.033]
[1741404259487,7.1741,139.39,139.38,0.033]
[1741404260819,28.32670645,139.39,139.38,0.033]
[1741404261411,36.41760645,139.39,139.38,0.033]
[1741404261799,61.50725531,139.39,139.36,0.033]
[1741404261999,21.15260645,139.37,139.36,0.033]
[1741404262720,46.97735531,139.37,139.36,0.033]
[1741404263012,87.69776176,139.37,139.34,0.033]
[1741404263218,21.15260645,139.35,139.34,0.033]
[1741404264407,21.15260645,139.36,139.34,0.033]
[1741404264605,22.78260645,139.37,139.34,0.033]
[1741404264807,6.427,139.39,139.35,21.15260645]
[1741404265206,184.67260645,139.41,139.35,21.15260645]
[1741404265619,8.1,139.41,139.36,21.15260645]
[1741404266129,8.1,139.41,139.37,21.15260645]
[1741404266325,0.03,139.41,139.38,21.15260645]
[1741404266527,0.03,139.41,139.39,21.15260645]
[1741404266827,0.03,139.41,139.39,28.32640645]
[1741404267323,0.03,139.41,139.39,155.51250645]
[1741404267523,0.03,139.41,139.39,134.3599]
[1741404267934,0.03,139.41,139.37,162.68750645]
[1741404268504,0.03,139.41,139.38,21.15260645]
[1741404268803,0.03,139.41,139.38,28.32710645]
[1741404269005,0.03,139.41,139.37,134.3599]
[1741404269424,21.18260645,139.41,139.36,134.3599]
[1741404269723,21.15260645,139.4,139.36,134.3599]
[1741404270606,1.586,139.39,139.36,134.3599]
[1741404270925,7.1746,139.38,139.34,0.033]
[1741404272924,22.73860645,139.39,139.34,0.033]
[1741404273112,1.586,139.39,139.34,21.18560645]
[1741404273625,6.1762,139.41,139.38,21.15260645]
[1741404273830,0.03,139.41,139.38,21.15260645]
[1741404275233,0.03,139.41,139.37,28.32750645]
[1741404276017,0.03,139.41,139.36,21.15260645]
[1741404277312,0.03,139.41,139.38,21.15260645]
[1741404279130,0.03,139.41,139.38,28.32700645]
[1741404279430,0.03,139.41,139.39,21.15260645]
[1741404279626,0.03,139.41,139.39,155.51250645]
[1741404279819,0.03,139.41,139.39,134.3599]
[1741404282334,0.03,139.41,139.39,162.68640645]
[1741404282909,0.03,139.41,139.4,21.15260645]
[1741404283113,0.03,139.41,139.4,39.80225531]
[1741404283318,0.03,139.41,139.4,46.97585531]
[1741404284317,0.03,139.41,139.4,28.32620645]
[1741404284623,0.03,139.41,139.4,21.15260645]
[1741404284816,0.03,139.41,139.4,28.32620645]
[1741404285409,0.03,139.41,139.4,21.15260645]
[1741404285616,0.03,139.41,139.4,28.32620645]
[1741404286248,0.03,139.41,139.4,181.33575531]
[1741404288423,0.03,139.41,139.4,155.51250645]
[1741404289337,0.03,139.41,139.4,162.68610645]
[1741404289542,0.03,139.41,139.4,181.33575531]
[1741404294733,0.03,139.41,139.4,155.51250645]
[1741404295655,0.03,139.41,139.4,162.68610645]
[1741404295955,0.03,139.41,139.4,181.33575531]
[1741404300531,0.03,139.41,139.4,155.51250645]
[1741404301351,0.03,139.41,139.4,181.33575531]
[1741404303449,0.03,139.45,139.42,25.82214886]
[1741404303741,0.03,139.45,139.43,21.15260645]
[1741404305130,0.03,139.45,139.43,28.32460645]
[1741404305334,0.03,139.45,139.4,141.5034]
[1741404305628,0.03,139.45,139.41,21.15260645]
[1741404306029,0.03,139.45,139.4,162.65600645]
[1741404306234,0.03,139.45,139.4,155.48250645]
[1741404306754,0.03,139.45,139.37,134.3299]
[1741404306755,21.15260645,139.43,139.37,134.3299]
[1741404306958,27.45770645,139.43,139.37,134.3299]
[1741404307165,7.1725,139.42,139.37,155.48250645]
[1741404308167,6.3051,139.43,139.39,21.15260645]
[1741404308664,13.4772,139.43,139.39,21.15260645]
[1741404309240,13.4772,139.43,139.38,21.15260645]
[1741404309435,34.62980645,139.43,139.38,21.15260645]
[1741404309754,34.62980645,139.43,139.37,155.48250645]
[1741404309962,21.15260645,139.41,139.36,155.51550645]
[1741404310145,21.15260645,139.41,139.36,21.18560645]
[1741404310662,21.15260645,139.42,139.36,21.18560645]
[1741404311266,28.32550645,139.42,139.36,21.18560645]
[1741404311644,28.32550645,139.42,139.36,28.36120645]
[1741404312858,21.15260645,139.42,139.36,28.36120645]
[1741404313054,34.62980645,139.43,139.37,21.15260645]
[1741404313461,21.15260645,139.42,139.36,21.18560645]
[1741404314143,34.62980645,139.43,139.37,21.15260645]
[1741404315173,34.62980645,139.43,139.37,28.32760645]
[1741404315352,27.00726021,139.43,139.37,20.70506021]
[1741404315542,27.00726021,139.43,139.37,13.53006021]
[1741404315742,13.4772,139.43,139.36,13.56306021]
[1741404316069,13.53006021,139.42,139.36,13.56306021]
[1741404317350,7.173,139.41,139.36,20.73856021]
[1741404317876,7.1726,139.42,139.37,13.53006021]
[1741404318170,20.70266021,139.42,139.36,13.56306021]
[1741404318386,20.70266021,139.42,139.36,20.73856021]
[1741404318976,13.53006021,139.41,139.36,0.033]
[1741404319271,13.53006021,139.4,139.36,0.033]
[1741404319575,20.70416021,139.4,139.36,0.033]
[1741404320758,1.6284,139.39,139.36,0.033]
[1741404320960,15.15846021,139.39,139.36,0.033]
[1741404321371,1.6284,139.39,139.36,0.033]
[1741404324258,1.6284,139.39,139.36,13.56306021]
[1741404324768,8.8025,139.39,139.36,0.033]
[1741404330590,13.53006021,139.37,139.36,0.033]
[1741404331383,20.70516021,139.37,139.36,0.033]
[1741404331592,20.70516021,139.37,139.36,0.0001]
[1741404331784,41.00050907,139.37,139.36,0.0001]
[1741404333483,22.35086021,139.37,139.36,0.0001]
[1741404334610,1.6457,139.37,139.36,0.0001]
[1741404335398,8.8208,139.37,139.36,0.0001]
[1741404335608,22.35086021,139.37,139.36,0.0001]
[1741404338503,18.64964886,139.36,139.34,0.033]
[1741404338707,32.17970907,139.35,139.34,0.033]
[1741404339498,13.53006021,139.35,139.34,0.033]
[1741404339705,20.70606021,139.36,139.34,0.033]
[1741404340013,13.53006021,139.36,139.34,0.033]
[1741404342590,20.70566021,139.36,139.34,0.033]
[1741404344419,1.6457,139.37,139.34,0.033]
[1741404344625,6.44,139.39,139.34,13.56306021]
[1741404345120,19.97006021,139.39,139.34,0.033]
[1741404345292,13.53006021,139.39,139.34,0.033]
[1741404345493,19.97006021,139.39,139.34,0.033]
[1741404346896,7.1746,139.38,139.34,0.033]
[1741404347217,20.70466021,139.38,139.34,0.033]
[1741404349320,7.1746,139.38,139.34,0.033]
[1741404349523,27.14426021,139.39,139.34,0.033]
[1741404349700,19.97006021,139.39,139.34,0.033]
[1741404349904,7.1737,139.4,139.34,13.56306021]
[1741404350216,13.53006021,139.39,139.34,134.3629]
[1741404351018,13.53006021,139.38,139.34,134.3629]
[1741404353316,7.1751,139.37,139.34,134.3629]
[1741404353495,13.53006021,139.35,139.34,0.033]
[1741404354622,20.70616021,139.35,139.34,0.033]
[1741404356301,7.1761,139.35,139.34,0.033]
[1741404357109,20.70616021,139.35,139.34,0.033]
[1741404358524,27.14616021,139.35,139.34,0.033]
[1741404359113,6.44,139.35,139.34,0.033]
[1741404360605,7.1755,139.37,139.34,0.033]
[1741404361002,0.03,139.39,139.34,13.56306021]
[1741404361312,0.03,139.39,139.36,13.53006021]
[1741404362628,0.03,139.39,139.35,13.53006021]
[1741404363032,0.03,139.39,139.34,147.89296021]
[1741404363209,0.03,139.39,139.35,13.53006021]
[1741404363806,0.03,139.39,139.34,147.89296021]
[1741404364110,13.56006021,139.39,139.34,134.3629]
[1741404364631,0.03,139.39,139.34,147.89296021]
[1741404365526,0.03,139.39,139.37,13.53006021]
[1741404365724,0.03,139.39,139.36,149.36386021]
[1741404366833,0.03,139.39,139.36,134.3299]
[1741404368216,0.03,139.39,139.36,155.03546021]
[1741404368515,0.03,139.39,139.37,13.53006021]
[1741404368717,0.03,139.39,139.36,155.03546021]
[1741404368917,0.03,139.39,139.37,13.53006021]
[1741404369119,0.03,139.39,139.38,13.53006021]
[1741404369635,0.03,139.39,139.38,155.03456021]
[1741404370213,0.03,139.39,139.38,175.21460907]
[1741404370428,0.03,139.39,139.38,181.83710907]
[1741404370821,0.4546272,139.39,139.38,181.83710907]
[1741404376137,2.72e-05,139.39,139.38,181.83710907]
[1741404378331,2.72e-05,139.39,139.38,13.53006021]
[1741404379024,2.72e-05,139.39,139.35,141.506]
[1741404379240,2.72e-05,139.39,139.36,13.53006021]
[1741404381053,2.72e-05,139.39,139.35,134.3299]
[1741404381655,2.72e-05,139.39,139.38,0.033]
[1741404381841,0.0300272,139.39,139.38,0.033]
[1741404382447,7.2041272,139.39,139.38,0.033]
[1741404382649,40.90793627,139.39,139.38,0.033]
[1741404382959,53.72353627,139.39,139.38,0.033]
[1741404383129,35.07388741,139.39,139.38,0.033]
[1741404383332,27.89978741,139.39,139.38,0.033]
[1741404383658,7.9941272,139.39,139.38,0.033]
[1741404385052,15.1682272,139.39,139.38,0.033]
[1741404386843,28.69828741,139.39,139.38,0.033]
[1741404388448,7.9941272,139.39,139.38,0.033]
[1741404388952,28.69828741,139.39,139.38,0.033]
[1741404390247,47.34793627,139.39,139.38,0.033]
[1741404391729,7.9941272,139.39,139.38,0.033]
[1741404391930,28.69828741,139.39,139.38,0.033]
[1741404393653,15.1682272,139.39,139.38,0.033]
[1741404394255,28.69828741,139.39,139.38,0.033]
[1741404394960,47.34793627,139.39,139.38,0.033]
[1741404396941,7.9941272,139.39,139.38,0.033]
[1741404397147,6.4700272,139.39,139.38,0.033]
[1741404398061,0.0300272,139.39,139.38,0.033]
[1741404398860,0.0300272,139.39,139.38,13.56306021]
[1741404399073,19.40171801,139.43,139.38,0.033]
[1741404399442,13.53006021,139.42,139.38,0.033]
[1741404401472,20.70306021,139.42,139.38,0.033]
[1741404403271,7.173,139.42,139.38,0.033]
[1741404404449,7.203,139.42,139.38,0.033]
[1741404404649,0.03,139.42,139.38,0.033]
[1741404404868,13.56006021,139.42,139.38,0.033]
[1741404405055,13.53006021,139.41,139.38,0.033]
[1741404405772,0.03,139.42,139.38,0.033]
[1741404407654,0.03,139.42,139.4,13.53006021]
[1741404409172,0.03,139.42,139.41,13.53006021]
[1741404409372,0.03,139.42,139.41,147.85996021]
[1741404410062,0.03,139.42,139.41,134.3299]
[1741404412480,0.03,139.42,139.41,147.85996021]
[1741404412789,0.03,139.42,139.41,134.3299]
[1741404413976,0.03,139.42,139.41,155.03296021]
[1741404414166,0.03,139.42,139.41,173.68260907]
[1741404418377,0.03,139.42,139.41,186.18730907]
[1741404419590,0.03,139.45,139.42,18.64964886]
[1741404419766,0.03,139.45,139.44,32.17970907]
[1741404420782,0.03,139.45,139.44,173.68110907]
[1741404422575,0.03,139.45,139.44,147.85996021]
[1741404422780,0.03,139.45,139.44,134.3299]
[1741404422970,0.03,139.45,139.41,147.85996021]
[1741404423184,0.03,139.45,139.41,141.5029]
[1741404423534,0.03,139.45,139.41,155.03296021]
[1741404424285,0.03,139.45,139.42,13.53006021]
[1741404424499,0.03,139.45,139.43,13.53006021]
[1741404424988,0.03,139.45,139.42,20.70236021]
[1741404425397,0.03,139.45,139.42,13.53006021]
[1741404425573,0.03,139.45,139.41,155.03296021]
[1741404426471,0.03,139.45,139.42,13.53006021]
[1741404426677,0.03,139.45,139.43,13.53006021]
[1741404427895,0.03,139.45,139.43,20.70156021]
[1741404428409,0.03,139.45,139.42,7.1725]
[1741404428590,0.03,139.45,139.42,20.70256021]
[1741404428781,0.03,139.45,139.41,13.53006021]
[1741404428987,0.03,139.45,139.4,155.03346021]
[1741404429604,0.03,139.45,139.42,13.53006021]
[1741404429907,0.03,139.45,139.43,20.70206021]
[1741404430605,0.03,139.45,139.44,13.53006021]
[1741404430798,0.03,139.45,139.44,32.17970907]
[1741404431796,0.03,139.45,139.44,39.35120907]
[1741404432004,0.03,139.45,139.44,173.68110907]
[1741404433208,0.03,139.45,139.44,160.15104886]
[1741404433512,0.03,139.45,139.44,181.26602561]
[1741404434892,0.03,139.45,139.44,162.61637675]